bitfinex/quotes_SOLUSD_20220130
["timestamp","ask_amount","ask_price","bid_price","bid_amount"]
[1643553052510,15.894,94.46,94.375,0.25]
[1643553052911,2.95669142,94.459,94.375,0.25]
[1643553053315,15.894,94.46,94.375,0.25]
[1643553053712,2.95669142,94.459,94.372,40.90001934]
[1643553053913,15.896,94.45,94.372,40.90001934]
[1643553054411,2.95669142,94.449,94.372,40.90001934]
[1643553054813,15.896,94.45,94.372,40.90001934]
[1643553055813,15.896,94.45,94.373,0.25]
[1643553057714,2.95669142,94.449,94.33,30.968]
[1643553057915,15.07,94.44,94.331,46.0812]
[1643553058115,15.901,94.42,94.331,46.0812]
[1643553058816,2.95669142,94.419,94.332,39.35977366]
[1643553059417,2.95669142,94.419,94.333,0.25]
[1643553059818,15.902,94.41,94.333,0.25]
[1643553063526,15.902,94.41,94.332,39.35977366]
[1643553063723,2.95669142,94.409,94.332,39.35977366]
[1643553063926,15.906,94.39,94.332,39.35977366]
[1643553066927,2.95669142,94.389,94.295,23.1804]
[1643553067129,15.908,94.38,94.295,23.1804]
[1643553067328,15.908,94.38,94.296,0.25]
[1643553067528,2.95669142,94.379,94.296,0.25]
[1643553067729,2.95669142,94.379,94.296,38.06856998]
[1643553068027,2.95669142,94.379,94.296,37.81856998]
[1643553068227,15.909,94.37,94.296,37.81856998]
[1643553069027,15.07,94.36,94.296,37.81856998]
[1643553069227,68.118,94.36,94.261,24.1073]
[1643553069532,15.07,94.36,94.262,0.25]
[1643553069729,15.07,94.36,94.262,2.49280842]
[1643553070127,2.95669142,94.359,94.263,41.86355671]
[1643553070329,2.95669142,94.359,94.264,0.25]
[1643553070928,2.95669142,94.359,94.263,41.86355671]
[1643553071128,15.914,94.34,94.263,41.86355671]
[1643553071334,13.3481111,94.34,94.263,41.86355671]
[1643553071527,108.25669142,94.339,94.263,41.86355671]
[1643553071927,2.95669142,94.338,94.263,41.86355671]
[1643553072326,2.95669142,94.338,94.264,0.25]
[1643553072527,15.07,94.35,94.264,0.25]
[1643553072726,48.4065,94.359,94.264,0.25]
[1643553073827,2.95669142,94.358,94.264,0.25]
[1643553074030,15.913,94.35,94.264,0.25]
[1643553074227,15.913,94.35,94.263,41.86355671]
[1643553074428,15.913,94.35,94.264,0.25]
[1643553075029,2.95669142,94.349,94.264,0.25]
[1643553075729,15.913,94.35,94.264,105.55]
[1643553075929,2.95669142,94.349,94.264,0.25]
[1643553076129,2.95669142,94.349,94.263,41.86355671]
[1643553076331,2.95669142,94.349,94.264,0.25]
[1643553076729,15.914,94.34,94.264,0.25]
[1643553076929,15.914,94.34,94.263,41.86355671]
[1643553077129,2.95669142,94.339,94.263,41.86355671]
[1643553077329,108.25669142,94.339,94.263,41.86355671]
[1643553077729,2.95669142,94.338,94.263,41.86355671]
[1643553077932,15.916,94.33,94.263,41.86355671]
[1643553078332,2.95669142,94.329,94.263,41.86355671]
[1643553079135,15.918,94.32,94.263,41.86355671]
[1643553079332,15.918,94.32,94.241,0.1]
[1643553079633,15.918,94.32,94.232,0.35]
[1643553080434,15.918,94.32,94.232,41.55021878]
[1643553080635,18.87469142,94.32,94.233,0.1]
[1643553081437,18.87469142,94.32,94.273,1.3511835]
[1643553082339,15.923,94.3,94.212,0.1]
[1643553082542,25.253,94.3,94.212,0.1]
[1643553082738,108.25669142,94.299,94.208,0.1]
[1643553082940,130.98589142,94.299,94.178,39.40305076]
[1643553083140,2.95669142,94.298,94.188,6.0]
[1643553083338,2.95669142,94.298,94.188,6.1]
[1643553083639,24.1652,94.297,94.189,24.0564]
[1643553083839,24.1652,94.297,94.19,0.1]
[1643553084039,15.928,94.27,94.19,0.1]
[1643553084244,15.928,94.27,94.19,0.35]
[1643553084646,2.95669142,94.269,94.19,0.1]
[1643553085271,15.931,94.26,94.19,0.1]
[1643553085671,2.95669142,94.259,94.19,0.1]
[1643553086270,2.95669142,94.259,94.19,0.35]
[1643553086470,30.998,94.27,94.19,0.35]
[1643553086670,2.95669142,94.269,94.19,0.1]
[1643553086873,2.95669142,94.269,94.19,0.35]
[1643553087171,2.95669142,94.269,94.19,0.25]
[1643553087970,15.931,94.26,94.18,0.35]
[1643553088472,2.95669142,94.259,94.18,0.1]
[1643553088873,15.932,94.25,94.18,0.1]
[1643553089272,2.95669142,94.249,94.18,0.1]
[1643553090474,2.95669142,94.249,94.179,0.1]
[1643553090673,108.25669142,94.249,94.179,0.1]
[1643553091072,2.95669142,94.248,94.179,0.1]
[1643553091473,24.7015,94.269,94.179,0.1]
[1643553091474,2.95669142,94.263,94.179,0.1]
[1643553091674,24.7015,94.269,94.179,0.35]
[1643553092275,24.7015,94.269,94.179,24.5949]
[1643553092575,24.7015,94.269,94.18,0.1]
[1643553093376,15.07,94.27,94.18,0.1]
[1643553093576,15.07,94.27,94.18,105.4]
[1643553093776,15.925,94.29,94.181,0.35]
[1643553093977,24.3045,94.302,94.181,0.35]
[1643553094179,24.3045,94.302,94.19,6.0]
[1643553094478,53.079,94.32,94.201,44.93915041]
[1643553094680,53.079,94.32,94.202,0.1]
[1643553094876,15.921,94.31,94.211,6.0]
[1643553095076,2.95669142,94.343,94.212,24.1112]
[1643553095077,15.07,94.33,94.212,24.1112]
[1643553095277,15.07,94.33,94.213,0.1]
[1643553096076,30.987,94.33,94.213,0.1]
[1643553098076,16.81632612,94.329,94.213,0.1]
[1643553098277,15.92,94.32,94.213,0.1]
[1643553098777,30.99,94.32,94.213,0.1]
[1643553098979,2.95669142,94.319,94.213,0.1]
[1643553099680,23.8813,94.318,94.213,0.1]
[1643553100180,26.83799142,94.318,94.213,0.1]
[1643553100481,105.3,94.317,94.213,0.1]
[1643553100679,15.922,94.31,94.213,0.1]
[1643553100879,105.3,94.309,94.213,0.1]
[1643553101080,108.25669142,94.309,94.213,0.1]
[1643553101279,15.07,94.3,94.213,0.1]
[1643553101482,105.3,94.299,94.213,0.1]
[1643553101679,105.3,94.299,94.201,44.93915041]
[1643553101680,15.925,94.29,94.202,0.1]
[1643553101883,30.995,94.29,94.202,0.1]
[1643553102382,2.95669142,94.289,94.202,105.4]
[1643553102584,15.07,94.33,94.212,6.0]
[1643553102780,15.07,94.33,94.213,105.55]
[1643553102981,15.07,94.33,94.214,0.1]
[1643553103181,15.07,94.33,94.214,2.34365852]
[1643553103480,15.07,94.33,94.213,0.25]
[1643553103481,15.07,94.33,94.224,38.55588576]
[1643553103681,15.07,94.33,94.225,47.8357]
[1643553103882,15.07,94.33,94.226,0.1]
[1643553104084,15.921,94.32,94.226,0.1]
[1643553104484,30.991,94.32,94.226,0.1]
[1643553104687,19.77301754,94.319,94.225,0.1]
[1643553105186,15.07,94.32,94.225,0.1]
[1643553105187,19.77301754,94.318,94.225,0.1]
[1643553105585,16.81632612,94.317,94.225,0.1]
[1643553106085,15.925,94.3,94.225,0.1]
[1643553107287,15.926,94.28,94.182,0.1]
[1643553107487,15.926,94.28,94.182,3.04081974]
[1643553107690,2.95669142,94.279,94.182,0.1]
[1643553107889,49.70219142,94.279,94.165,2.950024]
[1643553108088,49.70219142,94.279,94.164,42.44735685]
[1643553108288,2.95669142,94.278,94.165,3.04274117]
[1643553108688,15.929,94.26,94.165,3.04274117]
[1643553108889,15.929,94.26,94.166,25.46115852]
[1643553109091,15.929,94.26,94.167,3.04274117]
[1643553109289,15.929,94.26,94.168,0.25]
[1643553109694,15.929,94.26,94.169,2.94274117]
[1643553109892,15.929,94.26,94.17,0.25]
[1643553110094,15.929,94.26,94.171,2.94274117]
[1643553110295,15.929,94.26,94.172,0.25]
[1643553110591,15.929,94.26,94.173,2.94423133]
[1643553110796,15.929,94.26,94.174,0.25]
[1643553110992,15.929,94.26,94.174,2.49365852]
[1643553111394,105.3,94.278,94.175,2.24365852]
[1643553111795,105.3,94.278,94.176,0.25]
[1643553112797,105.3,94.278,94.167,0.35]
[1643553112996,15.928,94.27,94.168,2.94507424]
[1643553113196,15.928,94.27,94.168,5.18873276]
[1643553113397,15.928,94.27,94.169,3.19507424]
[1643553113598,15.928,94.27,94.17,2.94507424]
[1643553113796,15.928,94.27,94.171,0.25]
[1643553113996,15.928,94.27,94.172,2.94507424]
[1643553114197,46.7455,94.279,94.172,2.94507424]
[1643553114400,30.994,94.3,94.173,2.49365852]
[1643553114600,30.994,94.3,94.183,45.28828111]
[1643553114796,15.924,94.3,94.19,15.07]
[1643553114997,15.924,94.3,94.2,6.0]
[1643553115200,68.147,94.32,94.2,6.0]
[1643553115201,15.07,94.32,94.202,40.58135282]
[1643553115406,30.989,94.32,94.203,0.35]
[1643553115601,30.989,94.32,94.203,2.59365852]
[1643553115801,30.989,94.32,94.212,6.0]
[1643553116000,30.989,94.32,94.213,6.0]
[1643553116200,30.989,94.32,94.214,24.904]
[1643553116401,30.989,94.32,94.215,0.1]
[1643553117502,15.921,94.31,94.215,25.0512]
[1643553117704,15.921,94.31,94.216,0.1]
[1643553117908,15.921,94.31,94.216,0.35]
[1643553121227,15.921,94.31,94.222,1.47321219]
[1643553121428,15.921,94.31,94.223,35.08723795]
[1643553121627,15.921,94.31,94.224,0.1]
[1643553121827,15.921,94.31,94.224,0.35]
[1643553122034,15.07,94.33,94.224,0.35]
[1643553122228,15.07,94.33,94.228,1.47321219]
[1643553122429,15.07,94.33,94.238,36.78161778]
[1643553122631,15.07,94.33,94.24,1.47321219]
[1643553122831,15.07,94.33,94.241,1.72321219]
[1643553123031,15.917,94.34,94.243,1.47321219]
[1643553123228,15.917,94.34,94.241,1.72321219]
[1643553123229,22.5543,94.339,94.241,1.72321219]
[1643553123430,22.5543,94.339,94.244,0.25]
[1643553123629,22.5543,94.339,94.241,1.72321219]
[1643553124033,22.5543,94.339,94.244,1.47321219]
[1643553124230,15.917,94.33,94.244,1.47321219]
[1643553124431,15.917,94.33,94.245,0.25]
[1643553124632,15.917,94.33,94.241,0.25]
[1643553125233,15.917,94.33,94.244,1.47321219]
[1643553125637,15.917,94.33,94.245,0.25]
[1643553126034,15.917,94.33,94.245,1.72321219]
[1643553126434,15.917,94.33,94.245,0.25]
[1643553126636,15.917,94.33,94.24,0.1]
[1643553126837,105.3,94.329,94.24,0.1]
[1643553127039,15.919,94.32,94.24,0.1]
[1643553127439,2.95669142,94.319,94.24,0.1]
[1643553127638,19.77301754,94.319,94.24,0.1]
[1643553127838,19.77301754,94.319,94.172,15.69627748]
[1643553127839,19.77301754,94.319,94.216,1.57321219]
[1643553128038,15.922,94.3,94.209,1.47321219]
[1643553128240,15.07,94.29,94.202,1.47321219]
[1643553128437,15.07,94.29,94.154,47.9704]
[1643553128438,15.07,94.29,94.2,44.93344544]
[1643553128637,2.95669142,94.289,94.201,0.1]
[1643553128838,2.95669142,94.289,94.199,1.47321219]
[1643553129037,2.95669142,94.289,94.2,0.25]
[1643553129237,2.95669142,94.289,94.198,1.47321219]
[1643553129437,2.95669142,94.289,94.199,0.25]
[1643553129641,2.95669142,94.289,94.198,40.81494126]
[1643553129868,108.25669142,94.289,94.199,0.1]
[1643553130044,15.928,94.27,94.199,0.1]
[1643553130642,108.25669142,94.269,94.199,0.1]
[1643553131843,2.95669142,94.268,94.199,0.1]
[1643553132142,15.929,94.26,94.199,0.1]
[1643553135544,11.9,94.264,94.199,0.1]
[1643553135744,30.996,94.28,94.199,0.1]
[1643553135948,105.3,94.279,94.199,0.1]
[1643553136748,15.928,94.27,94.191,1.47321219]
[1643553136952,30.998,94.27,94.191,1.47321219]
[1643553137246,2.95669142,94.269,94.172,1.47321219]
[1643553137446,2.95669142,94.269,94.159,1.47321219]
[1643553137648,2.95669142,94.269,94.16,34.30768712]
[1643553137946,16.81632612,94.268,94.161,0.1]
[1643553138246,27.52632612,94.268,94.161,0.1]
[1643553138446,2.95669142,94.267,94.161,0.1]
[1643553139148,15.933,94.24,94.161,0.1]
[1643553139349,15.933,94.24,94.161,0.35]
[1643553139647,24.2954,94.266,94.161,0.35]
[1643553139848,2.95669142,94.267,94.166,1.47321219]
[1643553140046,2.95669142,94.267,94.162,2.23931325]
[1643553140047,2.95669142,94.267,94.17,1.47321219]
[1643553140248,2.95669142,94.267,94.171,1.47321219]
[1643553140449,2.95669142,94.267,94.171,1.72321219]
[1643553140646,2.95669142,94.267,94.171,0.25]
[1643553141048,15.929,94.26,94.171,0.25]
[1643553141448,15.929,94.26,94.162,0.1]
[1643553141648,2.95669142,94.259,94.162,0.1]
[1643553141849,2.95669142,94.259,94.161,0.1]
[1643553142448,19.77301754,94.259,94.161,0.1]
[1643553142849,2.95669142,94.258,94.161,0.1]
[1643553143149,15.931,94.25,94.161,0.1]
[1643553143349,31.001,94.25,94.161,0.1]
[1643553143550,2.95669142,94.249,94.161,0.1]
[1643553144350,2.95669142,94.249,94.161,0.35]
[1643553144551,108.25669142,94.249,94.161,0.35]
[1643553144953,2.95669142,94.248,94.161,0.35]
[1643553145152,105.3,94.229,94.161,0.35]
[1643553145553,2.95669142,94.228,94.161,0.35]
[1643553146154,15.936,94.22,94.161,0.1]
[1643553146357,15.936,94.22,94.137,0.25]
[1643553146555,108.25669142,94.219,94.137,0.25]
[1643553146754,108.25669142,94.219,94.129,1.47321219]
[1643553146955,2.95669142,94.218,94.13,1.47321219]
[1643553147156,2.95669142,94.218,94.131,41.38493728]
[1643553147355,2.95669142,94.218,94.132,0.1]
[1643553148157,2.95669142,94.218,94.133,1.47321219]
[1643553148355,2.95669142,94.218,94.134,0.25]
[1643553148959,15.938,94.21,94.134,0.25]
[1643553149457,2.95669142,94.209,94.134,0.25]
[1643553149657,2.95669142,94.209,94.132,0.35]
[1643553149858,108.25669142,94.209,94.132,0.35]
[1643553150257,2.95669142,94.208,94.132,0.35]
[1643553151662,1.60550792,94.208,94.132,0.35]
[1643553154479,15.939,94.2,94.132,0.35]
[1643553155183,1.60550792,94.208,94.132,0.35]
[1643553155580,105.3,94.219,94.132,0.35]
[1643553156280,2.95669142,94.218,94.132,0.35]
[1643553156481,2.95669142,94.218,94.132,1.82321219]
[1643553156885,2.95669142,94.218,94.138,1.47321219]
[1643553157082,2.95669142,94.218,94.139,1.47321219]
[1643553157282,2.95669142,94.218,94.14,0.25]
[1643553157482,2.95669142,94.218,94.143,1.47321219]
[1643553157681,2.95669142,94.218,94.144,1.47321219]
[1643553157881,2.95669142,94.218,94.145,0.25]
[1643553158081,2.95669142,94.232,94.144,1.47321219]
[1643553158482,2.95669142,94.232,94.145,0.25]
[1643553159486,15.934,94.23,94.146,1.47321219]
[1643553159683,15.934,94.23,94.147,34.09277893]
[1643553159885,15.934,94.23,94.148,0.1]
[1643553160887,2.95669142,94.229,94.148,0.1]
[1643553161188,15.936,94.22,94.148,0.1]
[1643553161388,15.936,94.22,94.148,0.35]
[1643553161588,2.95669142,94.219,94.148,0.35]
[1643553161990,2.95669142,94.219,94.148,0.1]
[1643553162987,15.938,94.21,94.148,0.1]
[1643553163389,2.95669142,94.209,94.148,0.1]
[1643553163788,108.25669142,94.209,94.148,0.1]
[1643553164190,2.95669142,94.208,94.148,0.1]
[1643553164389,15.939,94.2,94.148,0.1]
[1643553164792,2.95669142,94.199,94.136,1.47321219]
[1643553164994,2.95669142,94.199,94.135,1.64552363]
[1643553165392,2.95669142,94.199,94.136,0.25]
[1643553165593,2.95669142,94.199,94.136,36.79062186]
[1643553165795,2.95669142,94.199,94.137,1.57321219]
[1643553166094,2.95669142,94.199,94.139,1.47321219]
[1643553167597,2.95669142,94.199,94.14,1.47321219]
[1643553168400,15.941,94.19,94.14,1.47321219]
[1643553168598,15.941,94.19,94.139,1.47321219]
[1643553169000,15.941,94.19,94.138,1.47321219]
[1643553169199,15.941,94.19,94.137,1.57321219]
[1643553169800,15.941,94.19,94.138,1.47321219]
[1643553171001,15.941,94.19,94.139,1.47321219]
[1643553171702,15.941,94.19,94.141,1.47321219]
[1643553172303,15.941,94.19,94.14,1.47321219]
[1643553173107,15.941,94.19,94.141,1.47321219]
[1643553173304,15.941,94.19,94.142,1.47321219]
[1643553173907,15.941,94.19,94.139,1.47321219]
[1643553174108,15.941,94.19,94.138,1.47321219]
[1643553174507,15.941,94.19,94.137,1.57321219]
[1643553174709,15.941,94.19,94.138,1.47321219]
[1643553174906,15.941,94.19,94.139,1.47321219]
[1643553175506,15.941,94.19,94.137,0.1]
[1643553175507,15.941,94.19,94.137,1.57321219]
[1643553175908,15.941,94.19,94.135,0.17231144]
[1643553177710,2.95669142,94.199,94.135,0.17231144]
[1643553177911,2.95669142,94.199,94.135,1.89552363]
[1643553178217,2.95669142,94.208,94.135,1.64552363]
[1643553178510,2.95669142,94.208,94.136,1.72321219]
[1643553178710,2.95669142,94.208,94.137,1.47321219]
[1643553179312,2.95669142,94.208,94.136,1.72321219]
[1643553179511,2.95669142,94.208,94.137,1.47321219]
[1643553179913,15.94,94.2,94.137,1.47321219]
[1643553180212,15.94,94.2,94.136,1.47321219]
[1643553180411,2.95669142,94.199,94.136,1.47321219]
[1643553180612,2.95669142,94.199,94.137,1.47321219]
[1643553181112,2.95669142,94.199,94.138,1.47321219]
[1643553181512,108.25669142,94.199,94.138,1.47321219]
[1643553181911,2.95669142,94.198,94.137,1.47321219]
[1643553183013,2.95669142,94.198,94.138,1.47321219]
[1643553183417,2.95669142,94.198,94.137,1.47321219]
[1643553185515,2.95669142,94.198,94.138,1.47321219]
[1643553186518,2.95669142,94.198,94.135,0.17231144]
[1643553188418,2.95669142,94.198,94.136,1.47321219]
[1643553189618,2.95669142,94.198,94.137,1.47321219]
[1643553189818,2.95669142,94.198,94.138,1.47321219]
[1643553190219,15.941,94.19,94.137,1.47321219]
[1643553190418,15.941,94.19,94.138,1.47321219]
[1643553190820,15.941,94.19,94.137,1.47321219]
[1643553191218,15.941,94.19,94.139,1.47321219]
[1643553191919,15.941,94.19,94.138,1.47321219]
[1643553192419,15.941,94.19,94.139,1.47321219]
[1643553194121,15.941,94.19,94.137,1.47321219]
[1643553194520,15.941,94.19,94.135,0.17231144]
[1643553194521,15.941,94.19,94.138,1.47321219]
[1643553195823,15.941,94.19,94.136,1.47321219]
[1643553196421,15.941,94.19,94.135,1.64552363]
[1643553197022,2.95669142,94.198,94.138,1.47321219]
[1643553197322,1.44905057,94.226,94.138,1.47321219]
[1643553197323,2.95669142,94.212,94.138,1.47321219]
[1643553197523,2.95669142,94.228,94.141,1.47321219]
[1643553197825,2.95669142,94.228,94.135,0.17231144]
[1643553197826,1.44905057,94.241,94.153,1.47321219]
[1643553198025,25.18275057,94.242,94.155,1.47321219]
[1643553198223,23.7337,94.242,94.157,1.47321219]
[1643553198425,1.44905057,94.246,94.158,1.72321219]
[1643553198724,1.44905057,94.258,94.171,43.05359319]
[1643553198923,1.44905057,94.259,94.172,0.1]
[1643553199125,49.2584,94.269,94.177,1.47321219]
[1643553199126,1.44905057,94.265,94.177,1.47321219]
[1643553199323,49.2584,94.269,94.178,0.25]
[1643553199525,49.2584,94.269,94.172,0.35]
[1643553199526,49.2584,94.269,94.172,46.8677]
[1643553199723,49.2584,94.269,94.174,0.25]
[1643553199924,49.2584,94.269,94.173,0.1]
[1643553200328,15.928,94.27,94.173,0.1]
[1643553200725,1.44905057,94.28,94.173,0.1]
[1643553200929,1.44905057,94.282,94.173,0.1]
[1643553201226,1.44905057,94.282,94.173,1.57321219]
[1643553201428,1.44905057,94.288,94.181,105.3]
[1643553201631,32.44305057,94.29,94.182,0.1]
[1643553201828,30.994,94.29,94.182,0.35]
[1643553202230,1.44905057,94.288,94.182,0.1]
[1643553202427,1.44905057,94.288,94.182,0.35]
[1643553202628,2.95669142,94.287,94.182,0.35]
[1643553202832,24.7756,94.286,94.182,0.35]
[1643553204431,105.3,94.285,94.182,0.35]
[1643553204634,24.7756,94.286,94.182,0.35]
[1643553205836,15.926,94.28,94.182,0.35]
[1643553206037,15.926,94.28,94.182,0.1]
[1643553206237,29.446,94.28,94.182,0.1]
[1643553207439,29.446,94.28,94.182,0.35]
[1643553208663,29.446,94.28,94.182,0.1]
[1643553208862,15.932,94.25,94.173,0.1]
[1643553209062,105.3,94.249,94.172,0.1]
[1643553209263,108.25669142,94.249,94.172,0.1]
[1643553209560,2.95669142,94.248,94.172,0.1]
[1643553209962,31.001,94.25,94.172,0.1]
[1643553210468,31.001,94.25,94.172,25.2595]
[1643553210664,31.001,94.25,94.173,0.1]
[1643553211061,108.25669142,94.249,94.173,0.1]
[1643553211262,2.95669142,94.249,94.173,0.1]
[1643553211462,2.95669142,94.249,94.172,0.1]
[1643553211664,31.001,94.25,94.172,0.1]
[1643553211665,2.95669142,94.248,94.172,0.1]
[1643553212164,31.001,94.25,94.172,0.1]
[1643553212967,31.001,94.25,94.172,0.35]
[1643553213267,31.001,94.25,94.172,22.865]
[1643553213466,31.001,94.25,94.173,0.1]
[1643553215269,24.6876,94.263,94.174,2.23762099]
[1643553215469,1.44905057,94.273,94.174,2.23762099]
[1643553215669,13.52,94.28,94.175,0.25]
[1643553216069,13.52,94.28,94.176,2.23762099]
[1643553216270,13.52,94.28,94.177,0.25]
[1643553216673,13.52,94.28,94.178,2.23762099]
[1643553216973,29.446,94.28,94.179,0.25]
[1643553217172,15.926,94.28,94.18,15.07]
[1643553217373,15.926,94.28,94.181,0.35]
[1643553217874,24.6544,94.289,94.182,2.23762099]
[1643553218075,1.44905057,94.291,94.19,15.922]
[1643553218275,17.37205057,94.3,94.191,105.65]
[1643553218478,17.37205057,94.3,94.192,0.1]
[1643553218675,15.923,94.3,94.192,2.33379386]
[1643553218873,15.923,94.3,94.193,25.0987]
[1643553219075,15.923,94.3,94.194,105.4]
[1643553219275,1.44905057,94.298,94.195,0.35]
[1643553219677,106.74905057,94.299,94.195,0.35]
[1643553219877,15.924,94.29,94.195,0.25]
[1643553220476,1.44905057,94.295,94.194,0.35]
[1643553220677,1.44905057,94.301,94.196,2.23379386]
[1643553220877,1.44905057,94.307,94.2,15.07]
[1643553221078,1.44905057,94.307,94.201,38.18329942]
[1643553221277,24.46065057,94.308,94.202,0.1]
[1643553221478,1.44905057,94.307,94.202,0.1]
[1643553221678,23.0116,94.308,94.202,0.1]
[1643553221877,23.0116,94.308,94.202,24.8208]
[1643553222078,24.46065057,94.308,94.203,0.1]
[1643553222278,23.0116,94.308,94.203,105.65]
[1643553222478,105.3,94.307,94.204,0.1]
[1643553222677,24.46065057,94.308,94.204,0.1]
[1643553222878,23.0116,94.308,94.204,0.1]
[1643553223479,15.923,94.3,94.203,0.35]
[1643553223680,15.923,94.3,94.203,0.1]
[1643553224982,1.44905057,94.304,94.204,2.23358491]
[1643553225180,23.0116,94.308,94.204,2.33358491]
[1643553225381,23.0116,94.308,94.206,105.3]
[1643553225580,23.0116,94.308,94.207,0.1]
[1643553225780,1.44905057,94.303,94.206,0.1]
[1643553226379,1.44905057,94.301,94.206,0.1]
[1643553226780,1.44905057,94.298,94.206,0.1]
[1643553227180,24.7712,94.297,94.206,0.1]
[1643553227380,1.44905057,94.296,94.206,0.1]
[1643553227682,26.22025057,94.297,94.206,0.1]
[1643553227879,24.7712,94.297,94.206,0.1]
[1643553228079,15.07,94.29,94.206,0.1]
[1643553228279,15.07,94.29,94.202,0.1]
[1643553229081,30.994,94.29,94.202,0.35]
[1643553229583,30.994,94.29,94.202,23.1187]
[1643553229780,30.994,94.29,94.203,0.1]
[1643553230581,30.994,94.29,94.203,0.35]
[1643553231189,2.95669142,94.289,94.203,0.35]
[1643553231385,2.95669142,94.289,94.203,0.1]
[1643553231583,30.994,94.29,94.203,0.35]
[1643553232083,17.37305057,94.29,94.203,0.35]
[1643553232483,15.924,94.29,94.203,0.35]
[1643553233484,15.924,94.29,94.203,0.1]
[1643553233688,1.44905057,94.288,94.203,0.1]
[1643553235187,17.37305057,94.29,94.203,0.1]
[1643553238302,1.44905057,94.288,94.203,0.1]
[1643553238992,15.924,94.29,94.203,0.35]
[1643553239394,17.37305057,94.29,94.203,0.35]
[1643553239993,15.924,94.29,94.203,0.35]
[1643553240192,17.37305057,94.29,94.203,0.35]
[1643553240994,17.37305057,94.29,94.203,0.1]
[1643553241195,17.37305057,94.29,94.203,105.4]
[1643553241402,15.924,94.29,94.204,0.1]
[1643553241797,17.37305057,94.29,94.204,0.1]
[1643553242199,1.44905057,94.289,94.204,0.1]
[1643553242423,1.44905057,94.288,94.204,0.35]
[1643553242824,1.44905057,94.297,94.205,2.2352085]
[1643553243024,1.44905057,94.312,94.205,3.70842069]
[1643553243224,1.44905057,94.315,94.211,1.47321219]
[1643553243426,1.44905057,94.315,94.221,105.3]
[1643553243624,1.44905057,94.318,94.222,0.1]
[1643553243824,1.44905057,94.318,94.222,46.9168]
[1643553244027,1.44905057,94.318,94.223,105.4]
[1643553244325,2.89387992,94.34,94.224,0.35]
[1643553244326,1.44905057,94.316,94.224,0.35]
[1643553244525,1.44905057,94.316,94.224,2.5852085]
[1643553244726,1.44905057,94.316,94.232,37.08309247]
[1643553244931,1.44905057,94.316,94.233,105.4]
[1643553245129,2.89387992,94.34,94.234,0.1]
[1643553245130,1.44905057,94.317,94.234,0.1]
[1643553245327,1.44905057,94.316,94.234,2.3352085]
[1643553245527,1.44905057,94.315,94.234,2.3352085]
[1643553245728,1.44905057,94.318,94.235,2.4852085]
[1643553245927,1.44905057,94.319,94.235,2.4852085]
[1643553246128,1.44905057,94.319,94.241,105.3]
[1643553246328,1.44905057,94.319,94.242,0.35]
[1643553246531,1.44905057,94.32,94.242,2.5852085]
[1643553246928,0.94905057,94.322,94.243,2.2352085]
[1643553247126,22.9515,94.341,94.243,2.2352085]
[1643553247327,22.9515,94.341,94.244,23.2374]
[1643553247527,22.9515,94.341,94.245,105.4]
[1643553247728,22.9515,94.341,94.246,0.1]
[1643553247928,22.9515,94.341,94.246,0.35]